lending/lending_fUSD_20250516
["ID","MTS","AMOUNT","RATE_DAILY","PERIOD"]
[361260346,1747402252273,-400.0,0.00016438,2]
[361260347,1747402252282,-400.0,0.00016438,2]
[361260348,1747402252291,-479.5,0.00016438,2]
[361260349,1747402252301,-1221.18,0.00016438,2]
[361260350,1747402252311,-1834.18,0.00016438,2]
[361260351,1747402252320,-1020.7,0.00016438,2]
[361260352,1747402252330,-400.0,0.00016438,2]
[361260353,1747402252339,-400.0,0.00016438,2]
[361260354,1747402252348,-400.0,0.00016438,2]
[361260355,1747402252358,-400.0,0.00016438,2]
[361260356,1747402252367,-1000.0,0.00016438,2]
[361260357,1747402252376,-400.0,0.00016438,2]
[361260358,1747402252387,-1000.0,0.00016438,2]
[361260359,1747402252396,-1007.53628098,0.00016438,2]
[361260360,1747402252405,-889.73,0.00016438,2]
[361260361,1747402252416,-400.0,0.00016438,2]
[361260362,1747402252427,-400.0,0.00016438,2]
[361260363,1747402252436,-400.0,0.00016438,2]
[361260364,1747402252446,-400.0,0.00016438,2]
[361260365,1747402252455,-400.0,0.00016438,2]
[361260366,1747402252466,-941.17,0.00016438,2]
[361260367,1747402252475,-400.0,0.00016438,2]
[361260368,1747402252484,-199.23456171,0.00016438,2]
[361260369,1747402252511,-407.73543829,0.00016438,2]
[361260370,1747402252521,-252.19481911,0.00016438,2]
[361260371,1747402252530,-777.6,0.00016438,2]
[361260372,1747402252539,-400.0,0.00016438,2]
[361260373,1747402252548,-553.54,0.00016438,2]
[361260374,1747402252558,-204.10972669,0.00016438,2]
[361260375,1747402252569,-287.00498643,0.00016438,2]
[361260376,1747402252578,-71.16273857,0.00016438,2]
[361260377,1747402252617,-393.47104576,0.00016438,2]
[361260378,1747402252698,-114.46621567,0.00016438,2]
[361260379,1747402252708,-1180.79,0.00016438,2]
[361260380,1747402252718,-9668.4131464,0.00016438,2]
[361260381,1747402252727,-2585.14,0.00016438,2]
[361260382,1747402252737,-529.1,0.00016438,2]
[361260383,1747402252746,-400.0,0.00016438,2]
[361260384,1747402252756,-484.65,0.00016438,2]
[361260385,1747402252765,-762.69,0.00016438,2]
[361260386,1747402252775,-151.0,0.00016438,2]
[361260387,1747402252783,-151.0,0.00016438,2]
[361260388,1747402252793,-151.0,0.00016438,2]
[361260389,1747402252802,-151.0,0.00016438,2]
[361260390,1747402252811,-400.0,0.00016438,2]
[361260391,1747402252821,-471.13,0.00016438,2]
[361260392,1747402252830,-400.0,0.00016438,2]
[361260393,1747402252839,-400.0,0.00016438,2]
[361260394,1747402252848,-752.93,0.00016438,2]
[361260395,1747402252858,-151.0,0.00016438,2]
[361260396,1747402252867,-151.0,0.00016438,2]
[361260397,1747402252876,-151.0,0.00016438,2]
[361260398,1747402252885,-1047.62,0.00016438,2]
[361260399,1747402252894,-515.14,0.00016438,2]
[361260400,1747402252904,-151.0,0.00016438,2]
[361260401,1747402252915,-555.18,0.00016438,2]
[361260402,1747402252924,-400.0,0.00016438,2]
[361260403,1747402252934,-724.8,0.00016438,2]
[361260404,1747402252943,-400.0,0.00016438,2]
[361260405,1747402252952,-400.0,0.00016438,2]
[361260406,1747402252961,-400.0,0.00016438,2]
[361260407,1747402252970,-235.79649271,0.00016438,2]
[361260408,1747402252980,-471.17,0.00016438,2]
[361260409,1747402252989,-763.44,0.00016438,2]
[361260410,1747402252999,-400.0,0.00016438,2]
[361260411,1747402253008,-400.0,0.00016438,2]
[361260412,1747402253018,-541.65,0.00016438,2]
[361260413,1747402253027,-831.43,0.00016438,2]
[361260414,1747402253037,-577.12,0.00016438,2]
[361260415,1747402253047,-5192.25,0.00016438,2]
[361260416,1747402253057,-400.0,0.00016438,2]
[361260417,1747402253066,-400.0,0.00016438,2]
[361260418,1747402253075,-400.0,0.00016438,2]
[361260419,1747402253085,-2194.51,0.00016438,2]
[361260420,1747402253095,-400.0,0.00016438,2]
[361260421,1747402253104,-400.0,0.00016438,2]
[361260422,1747402253114,-829.36,0.00016438,2]
[361260423,1747402253123,-676.31,0.00016438,2]
[361260424,1747402253132,-518.85,0.00016438,2]
[361260425,1747402253141,-473.93,0.00016438,2]
[361260426,1747402253151,-11493.04,0.00016438,2]
[361260427,1747402253163,-5038.42582887,0.00016438,2]
[361260428,1747402253177,-379.26010007,0.00016438,2]
[361260429,1747402253604,-518.45996982,0.00015257,2]
[361260430,1747402253615,-431.94227916,0.00015257,2]
[361260431,1747402253627,-629.77539261,0.00015257,2]
[361260432,1747402253636,-340.0,0.00015889,2]
[361260433,1747402253645,-710.22460739,0.00016142,2]
[361260434,1747402253657,-594.77539261,0.00016142,2]
[361260435,1747402253669,-175.81960919,0.00016438,2]
[361260436,1747402253680,-387.1575,0.00016438,2]
[361260437,1747402253692,-390.56154338,0.00016438,2]
[361260438,1747402253721,-656.89166744,0.00016438,2]
[361260439,1747402253733,-3128.75566735,0.00016438,2]
[361260447,1747402597784,450.0,0.0001,2]
[361260449,1747402688700,-162.98,0.00012,2]
[361260460,1747402831714,741.94884134,0.00025,30]
[361260463,1747402958574,-162.56067375,0.00012,2]
[361260464,1747402960701,-174.45932625,0.00012,2]
[361260465,1747402960722,-156.20860496,0.00013447,2]
[361260466,1747402960745,-64.67802428,0.00013461,2]
[361260467,1747403135201,202.41,0.00021945,30]
[361260477,1747403431873,-541.35197572,0.00013461,2]
[361260478,1747403431884,-1000.0,0.00013699,2]
[361260479,1747403431895,-550.0,0.00014,2]
[361260480,1747403431906,-2499.20585612,0.00014298,2]
[361260481,1747403431917,-162.53,0.00014822,2]
[361260482,1747403431929,-300.0,0.00014867,2]
[361260483,1747403431940,-1200.0,0.00014867,2]
[361260484,1747403431951,-300.0,0.00014867,2]
[361260485,1747403431963,-1446.91216816,0.00014868,2]
[361260486,1747403431998,-3800.32367056,0.00014868,2]
[361260487,1747403432008,-200.0,0.00014886,2]
[361260488,1747403432019,-150.0,0.00014895,2]
[361260489,1747403432030,-621.35,0.00015018,2]
[361260490,1747403432041,-4000.0,0.00015111,2]
[361260491,1747403432052,-1393.06927081,0.00015311,2]
[361260492,1747403432063,-1238.0,0.00015378,2]
[361260493,1747403432074,-250.0,0.00015378,2]
[361260494,1747403432086,-272.02,0.00015392,2]
[361260495,1747403432097,-4596.04,0.00015397,2]
[361260496,1747403432107,-318.44,0.000154,2]
[361260497,1747403432119,-174.53,0.0001541,2]
[361260498,1747403432130,-1000.0,0.00015431,2]
[361260499,1747403432140,-161.42,0.00015472,2]
[361260500,1747403432151,-318.44,0.000155,2]
[361260501,1747403432162,-150.0,0.00015568,7]
[361260502,1747403432175,-318.44,0.000156,2]
[361260503,1747403432187,-1065.6551236,0.00015608,2]
[361260504,1747403432197,-151.0,0.00015615,2]
[361260506,1747403432209,-719.52358209,0.00015615,2]
[361260508,1747403432220,-668.65185757,0.00015615,2]
[361260510,1747403432231,-1000.0,0.00015615,2]
[361260512,1747403432244,-207.4,0.00015615,2]
[361260514,1747403432256,-166.17,0.00015642,2]
[361260517,1747403432268,-318.44,0.000157,2]
[361260519,1747403432281,-318.44,0.000157,2]
[361260521,1747403432293,-1600.0,0.000157,5]
[361260523,1747403432303,-606.03,0.00015725,2]
[361260525,1747403432314,-701.16686067,0.00015798,2]
[361260596,1747403432982,-3300.0,0.000158,5]
[361260601,1747403433027,-150.0,0.0001589,2]
[361260605,1747403433054,-5000.0,0.000159,5]
[361260606,1747403433071,-600.0,0.00016,2]
[361260607,1747403433081,-668.65185757,0.00016163,2]
[361260608,1747403433090,-1037.0,0.00016163,2]
[361260609,1747403433099,-170.0,0.000162,2]
[361260610,1747403433110,-170.0,0.000162,2]
[361260611,1747403433119,-170.0,0.000162,2]
[361260612,1747403433129,-170.0,0.000162,2]
[361260613,1747403433139,-170.0,0.000162,2]
[361260614,1747403433149,-340.3,0.000162,2]
[361260615,1747403433158,-913.77,0.000162,2]
[361260616,1747403433170,-312.15,0.000162,2]
[361260617,1747403433181,-300.0,0.00016274,2]
[361260618,1747403433191,-200.0,0.00016307,2]
[361260619,1747403433200,-226.7928,0.00016334,2]
[361260620,1747403433211,-2071.07205011,0.00016337,2]
[361260621,1747403433221,-3119.8679,0.00016338,2]
[361260622,1747403433232,-2073.9276,0.00016338,2]
[361260623,1747403433242,-2500.0,0.00016338,2]
[361260624,1747403433252,-181.72177999,0.00016338,2]
[361260625,1747403433262,-585.97804353,0.00016338,2]
[361260626,1747403433272,-204.97704878,0.00016338,2]
[361260627,1747403433282,-206.74259415,0.00016338,2]
[361260628,1747403433292,-1422.15987744,0.00016338,2]
[361260629,1747403433302,-153.67080803,0.00016338,2]
[361260630,1747403433312,-1680.0,0.00016354,2]
[361260631,1747403433322,-848.6371631,0.00016355,2]
[361260632,1747403433332,-170.0,0.000164,2]
[361260633,1747403433341,-1000.0,0.000164,3]
[361260634,1747403433352,-153.85482975,0.00016428,2]
[361260635,1747403433364,-1367.165,0.00016429,2]
[361260636,1747403433374,-1422.15987736,0.00016429,2]
[361260637,1747403433384,-204.91046657,0.00016437,2]
[361260638,1747403433395,-500.0,0.00016437,2]
[361260639,1747403433406,-500.0,0.00016437,2]
[361260640,1747403433417,-500.0,0.00016437,2]
[361260641,1747403433428,-448.69795489,0.00016437,2]
[361260642,1747403433437,-500.0,0.00016437,2]
[361260643,1747403433448,-500.0,0.00016437,2]
[361260644,1747403433457,-500.0,0.00016437,2]
[361260645,1747403433467,-500.0,0.00016437,2]
[361260646,1747403433477,-500.0,0.00016437,2]
[361260647,1747403433487,-500.0,0.00016437,2]
[361260648,1747403433496,-500.0,0.00016437,2]
[361260649,1747403433506,-500.0,0.00016437,2]
[361260650,1747403433516,-500.0,0.00016437,2]
[361260651,1747403433526,-500.0,0.00016437,2]
[361260652,1747403433536,-500.0,0.00016437,2]
[361260653,1747403433546,-524.55072781,0.00016437,2]
[361260654,1747403433556,-500.0,0.00016437,2]
[361260655,1747403433566,-500.0,0.00016437,2]
[361260656,1747403433576,-500.0,0.00016437,2]
[361260657,1747403433586,-500.0,0.00016437,2]
[361260658,1747403433595,-500.0,0.00016437,2]
[361260659,1747403433606,-500.0,0.00016437,2]
[361260660,1747403433617,-500.0,0.00016437,2]
[361260661,1747403433626,-500.0,0.00016437,2]
[361260662,1747403433636,-380.04,0.00016437,2]
[361260663,1747403433647,-557.90662924,0.00016437,2]
[361260664,1747403433656,-500.0,0.00016437,2]
[361260665,1747403433667,-500.0,0.00016437,2]
[361260666,1747403433677,-169.73963846,0.00016438,2]
[361260667,1747403433688,-151.0,0.00016438,2]
[361260668,1747403433698,-166.590599,0.00016438,2]
[361260669,1747403433708,-166.590599,0.00016438,2]
[361260670,1747403433718,-166.590599,0.00016438,2]
[361260671,1747403433727,-166.590599,0.00016438,2]
[361260672,1747403433737,-166.590599,0.00016438,2]
[361260673,1747403433747,-166.590599,0.00016438,2]
[361260674,1747403433757,-166.590599,0.00016438,2]
[361260675,1747403433766,-166.590599,0.00016438,2]
[361260676,1747403433776,-151.0,0.00016438,2]
[361260677,1747403433787,-151.0,0.00016438,2]
[361260678,1747403433797,-151.0,0.00016438,2]
[361260679,1747403433806,-151.0,0.00016438,2]
[361260680,1747403433816,-400.0,0.00016438,2]
[361260681,1747403433825,-151.0,0.00016438,2]
[361260682,1747403433838,-442.01254993,0.00016438,2]
[361260683,1747403433848,-400.0,0.00016438,2]
[361260684,1747403433857,-500.0,0.00016438,2]
[361260685,1747403433866,-272.31379556,0.00016438,2]
[361260686,1747403433876,-151.0,0.00016438,2]
[361260687,1747403433886,-151.0,0.00016438,2]
[361260688,1747403433895,-400.0,0.00016438,2]
[361260689,1747403433905,-400.0,0.00016438,2]
[361260690,1747403433915,-400.0,0.00016438,2]
[361260691,1747403433925,-400.0,0.00016438,2]
[361260692,1747403433934,-400.0,0.00016438,2]
[361260693,1747403433944,-400.0,0.00016438,2]
[361260694,1747403433954,-400.0,0.00016438,2]
[361260695,1747403433963,-400.0,0.00016438,2]
[361260696,1747403433973,-400.0,0.00016438,2]
[361260697,1747403433982,-151.0,0.00016438,2]
[361260698,1747403433992,-400.0,0.00016438,2]
[361260699,1747403434002,-151.0,0.00016438,2]
[361260700,1747403434012,-400.0,0.00016438,2]
[361260701,1747403434022,-400.0,0.00016438,2]
[361260702,1747403434031,-246.23185,0.00016438,2]
[361260703,1747403434040,-433.44533755,0.00016438,2]
[361260704,1747403434050,-400.0,0.00016438,2]
[361260705,1747403434060,-400.0,0.00016438,2]
[361260706,1747403434069,-151.0,0.00016438,2]
[361260707,1747403434079,-400.0,0.00016438,2]
[361260708,1747403434088,-400.0,0.00016438,2]
[361260709,1747403434098,-400.0,0.00016438,2]
[361260710,1747403434107,-400.0,0.00016438,2]
[361260711,1747403434117,-400.0,0.00016438,2]
[361260712,1747403434127,-400.0,0.00016438,2]
[361260713,1747403434136,-400.0,0.00016438,2]
[361260714,1747403434145,-400.0,0.00016438,2]
[361260715,1747403434155,-200.0,0.00016438,2]
[361260716,1747403434166,-548.1070166,0.00016438,2]
[361260717,1747403434177,-400.0,0.00016438,2]
[361260718,1747403434187,-151.0,0.00016438,2]
[361260719,1747403434197,-400.0,0.00016438,2]
[361260720,1747403434206,-400.0,0.00016438,2]
[361260721,1747403434215,-400.43035583,0.00016438,2]
[361260722,1747403434224,-400.0,0.00016438,2]
[361260723,1747403434233,-400.0,0.00016438,2]
[361260724,1747403434243,-400.0,0.00016438,2]
[361260725,1747403434253,-400.0,0.00016438,2]
[361260726,1747403434262,-400.0,0.00016438,2]
[361260727,1747403434272,-401.0639171,0.00016438,2]
[361260728,1747403434281,-400.0,0.00016438,2]
[361260729,1747403434291,-400.0,0.00016438,2]
[361260730,1747403434301,-151.0,0.00016438,2]
[361260731,1747403434310,-400.0,0.00016438,2]
[361260732,1747403434320,-400.0,0.00016438,2]
[361260733,1747403434329,-151.0,0.00016438,2]
[361260734,1747403434339,-400.0,0.00016438,2]
[361260735,1747403434348,-676.65,0.00016438,2]
[361260736,1747403434358,-483.47,0.00016438,2]
[361260737,1747403434367,-400.43881309,0.00016438,2]
[361260738,1747403434378,-400.0,0.00016438,2]
[361260739,1747403434388,-400.0,0.00016438,2]
[361260740,1747403434398,-202.97821018,0.00016438,2]
[361260741,1747403434409,-400.0,0.00016438,2]
[361260742,1747403434420,-400.0,0.00016438,2]
[361260743,1747403434430,-400.0,0.00016438,2]
[361260744,1747403434440,-400.0,0.00016438,2]
[361260745,1747403434450,-400.0,0.00016438,2]
[361260746,1747403434460,-400.0,0.00016438,2]
[361260747,1747403434471,-400.0,0.00016438,2]
[361260748,1747403434481,-400.0,0.00016438,2]
[361260749,1747403434491,-400.33801073,0.00016438,2]
[361260750,1747403434500,-412.92,0.00016438,2]
[361260751,1747403434511,-400.0,0.00016438,2]
[361260752,1747403434521,-400.0,0.00016438,2]
[361260753,1747403434531,-400.0,0.00016438,2]
[361260754,1747403434541,-242.7959075,0.00016438,2]
[361260755,1747403434550,-400.0,0.00016438,2]
[361260756,1747403434560,-400.0,0.00016438,2]
[361260757,1747403434571,-256.63655803,0.00016438,2]
[361260758,1747403434580,-400.0,0.00016438,2]
[361260759,1747403434590,-516.28231034,0.00016438,2]
[361260760,1747403434600,-400.0,0.00016438,2]
[361260761,1747403434609,-400.0,0.00016438,2]
[361260762,1747403434619,-519.80058176,0.00016438,2]
[361260763,1747403434629,-530.66,0.00016438,2]
[361260764,1747403434638,-200.0,0.00016438,2]
[361260765,1747403434648,-400.0,0.00016438,2]
[361260766,1747403434658,-400.0,0.00016438,2]
[361260767,1747403434668,-400.0,0.00016438,2]
[361260768,1747403434678,-400.0,0.00016438,2]
[361260769,1747403434688,-400.0,0.00016438,2]
[361260770,1747403434697,-400.0,0.00016438,2]
[361260771,1747403434707,-400.0,0.00016438,2]
[361260772,1747403434716,-400.0,0.00016438,2]
[361260773,1747403434727,-400.0,0.00016438,2]
[361260774,1747403434736,-308.98212954,0.00016438,2]
[361260775,1747403434745,-400.67956545,0.00016438,2]
[361260776,1747403434755,-400.0,0.00016438,2]
[361260777,1747403434764,-400.0,0.00016438,2]
[361260778,1747403434774,-400.0,0.00016438,2]
[361260779,1747403434783,-400.0,0.00016438,2]
[361260780,1747403434793,-400.0,0.00016438,2]
[361260781,1747403434803,-400.0,0.00016438,2]
[361260782,1747403434813,-400.0,0.00016438,2]
[361260783,1747403434823,-400.0,0.00016438,2]
[361260784,1747403434834,-400.0,0.00016438,2]
[361260785,1747403434843,-400.0,0.00016438,2]
[361260786,1747403434853,-858.12,0.00016438,2]
[361260787,1747403434862,-400.0,0.00016438,2]
[361260788,1747403434872,-400.0,0.00016438,2]
[361260789,1747403434881,-400.0,0.00016438,2]
[361260790,1747403434891,-400.0,0.00016438,2]
[361260791,1747403434901,-400.0,0.00016438,2]
[361260792,1747403434910,-400.0,0.00016438,2]
[361260793,1747403434921,-400.0,0.00016438,2]
[361260794,1747403434930,-400.0,0.00016438,2]
[361260795,1747403434940,-400.0,0.00016438,2]
[361260796,1747403434949,-400.0,0.00016438,2]
[361260797,1747403434959,-400.0,0.00016438,2]
[361260798,1747403434969,-400.0,0.00016438,2]
[361260799,1747403434979,-685.86,0.00016438,2]
[361260800,1747403434988,-267.03320477,0.00016438,2]
[361260801,1747403434998,-400.0,0.00016438,2]
[361260802,1747403435007,-944.69,0.00016438,2]
[361260803,1747403435017,-400.63,0.00016438,2]
[361260804,1747403435027,-400.0,0.00016438,2]
[361260805,1747403435036,-400.0,0.00016438,2]
[361260806,1747403435046,-400.0,0.00016438,2]
[361260807,1747403435056,-400.0,0.00016438,2]
[361260808,1747403435065,-571.1,0.00016438,2]
[361260809,1747403435075,-400.0,0.00016438,2]
[361260810,1747403435084,-400.0,0.00016438,2]
[361260811,1747403435093,-400.0,0.00016438,2]
[361260812,1747403435103,-400.0,0.00016438,2]
[361260813,1747403435113,-400.0,0.00016438,2]
[361260814,1747403435122,-400.0,0.00016438,2]
[361260815,1747403435132,-400.0,0.00016438,2]
[361260816,1747403435141,-400.0,0.00016438,2]
[361260817,1747403435150,-400.0,0.00016438,2]
[361260818,1747403435160,-400.0,0.00016438,2]
[361260819,1747403435171,-400.0,0.00016438,2]
[361260820,1747403435180,-500.0,0.00016438,2]
[361260821,1747403435189,-400.0,0.00016438,2]
[361260822,1747403435198,-400.0,0.00016438,2]
[361260823,1747403435207,-400.0,0.00016438,2]
[361260824,1747403435217,-400.0,0.00016438,2]
[361260825,1747403435227,-400.0,0.00016438,2]
[361260826,1747403435236,-400.0,0.00016438,2]
[361260827,1747403435245,-400.0,0.00016438,2]
[361260828,1747403435255,-512.59,0.00016438,2]
[361260829,1747403435265,-419.37997188,0.00016438,2]
[361260830,1747403435275,-1000.0,0.00016438,2]
[361260831,1747403435285,-400.09,0.00016438,2]
[361260832,1747403435295,-497.25,0.00016438,2]
[361260833,1747403435305,-400.0,0.00016438,2]
[361260834,1747403435316,-400.0,0.00016438,2]
[361260835,1747403435326,-400.0,0.00016438,2]
[361260836,1747403435335,-400.0,0.00016438,2]
[361260837,1747403435345,-400.0,0.00016438,2]
[361260838,1747403435354,-400.0,0.00016438,2]
[361260839,1747403435363,-556.41,0.00016438,2]
[361260840,1747403435374,-400.0,0.00016438,2]
[361260841,1747403435384,-308.74057464,0.00016438,2]
[361260842,1747403435394,-306.53226943,0.00016438,2]
[361260843,1747403435404,-400.0,0.00016438,2]
[361260844,1747403435414,-400.0,0.00016438,2]
[361260845,1747403435424,-400.0,0.00016438,2]
[361260846,1747403435434,-400.0,0.00016438,2]
[361260847,1747403435443,-400.0,0.00016438,2]
[361260848,1747403435453,-400.0,0.00016438,2]
[361260849,1747403435462,-400.0,0.00016438,2]
[361260850,1747403435472,-558.52,0.00016438,2]
[361260851,1747403435482,-400.0,0.00016438,2]
[361260852,1747403435492,-400.0,0.00016438,2]
[361260853,1747403435501,-644.74,0.00016438,2]
[361260854,1747403435511,-151.0,0.00016438,2]
[361260855,1747403435521,-151.0,0.00016438,2]
[361260856,1747403435531,-400.0,0.00016438,2]
[361260857,1747403435541,-301.846368,0.00016438,2]
[361260858,1747403435550,-559.59,0.00016438,2]
[361260859,1747403435560,-400.0,0.00016438,2]
[361260860,1747403435570,-400.0,0.00016438,2]
[361260861,1747403435579,-454.72340144,0.00016438,2]
[361260862,1747403435589,-298.52682458,0.00016438,2]
[361260863,1747403435599,-400.0,0.00016438,2]
[361260864,1747403435608,-400.0,0.00016438,2]
[361260865,1747403435618,-155.4402479,0.00016438,2]
[361260866,1747403435628,-646.19,0.00016438,2]
[361260867,1747403435637,-400.0,0.00016438,2]
[361260868,1747403435647,-486.72,0.00016438,2]
[361260869,1747403435657,-400.0,0.00016438,2]
[361260870,1747403435667,-400.0,0.00016438,2]
[361260871,1747403435677,-400.0,0.00016438,2]
[361260872,1747403435686,-610.77,0.00016438,2]
[361260873,1747403435696,-476.68,0.00016438,2]
[361260874,1747403435705,-461.12302949,0.00016438,2]
[361260875,1747403435715,-438.27,0.00016438,2]
[361260876,1747403435725,-455.13,0.00016438,2]
[361260877,1747403435735,-151.0,0.00016438,2]
[361260878,1747403435744,-151.0,0.00016438,2]
[361260879,1747403435754,-151.0,0.00016438,2]
[361260880,1747403435764,-400.0,0.00016438,2]
[361260881,1747403435775,-220.161452,0.00016438,2]
[361260882,1747403435785,-400.0,0.00016438,2]
[361260883,1747403435794,-270.09594008,0.00016438,2]
[361260884,1747403435804,-400.0,0.00016438,2]
[361260885,1747403435815,-400.0,0.00016438,2]
[361260886,1747403435825,-400.0,0.00016438,2]
[361260887,1747403435838,-400.0,0.00016438,2]
[361260888,1747403435848,-400.0,0.00016438,2]
[361260889,1747403435858,-400.0,0.00016438,2]
[361260890,1747403435867,-400.0,0.00016438,2]
[361260891,1747403435878,-151.0,0.00016438,2]
[361260892,1747403435888,-151.0,0.00016438,2]
[361260893,1747403435898,-151.0,0.00016438,2]
[361260894,1747403435909,-376.17050034,0.00016438,2]
[361260895,1747403435920,-151.0,0.00016438,2]
[361260896,1747403435930,-151.0,0.00016438,2]
[361260897,1747403435939,-151.0,0.00016438,2]
[361260898,1747403435949,-400.0,0.00016438,2]
[361260899,1747403435958,-400.0,0.00016438,2]
[361260900,1747403435968,-1564.510144,0.00016438,2]
[361260901,1747403435977,-400.0,0.00016438,2]
[361260902,1747403435986,-400.0,0.00016438,2]
[361260903,1747403435997,-400.0,0.00016438,2]
[361260904,1747403436006,-158.296686,0.00016438,2]
[361260905,1747403436016,-718.14,0.00016438,2]
[361260906,1747403436026,-400.0,0.00016438,2]
[361260907,1747403436036,-400.0,0.00016438,2]
[361260908,1747403436047,-401.04533332,0.00016438,2]
[361260909,1747403436056,-400.0,0.00016438,2]
[361260910,1747403436066,-400.0,0.00016438,2]
[361260911,1747403436076,-403.37008786,0.00016438,2]
[361260912,1747403436085,-405.09790886,0.00016438,2]
[361260913,1747403436095,-400.0,0.00016438,2]
[361260914,1747403436104,-151.0,0.00016438,2]
[361260915,1747403436114,-151.0,0.00016438,2]
[361260916,1747403436125,-151.0,0.00016438,2]
[361260917,1747403436135,-400.0,0.00016438,2]
[361260918,1747403436146,-400.0,0.00016438,2]
[361260919,1747403436156,-400.0,0.00016438,2]
[361260920,1747403436167,-400.0,0.00016438,2]
[361260921,1747403436176,-400.0,0.00016438,2]
[361260922,1747403436187,-400.0,0.00016438,2]
[361260923,1747403436196,-400.0,0.00016438,2]
[361260924,1747403436206,-529.33911246,0.00016438,2]
[361260925,1747403436216,-400.0,0.00016438,2]
[361260926,1747403436225,-400.0,0.00016438,2]
[361260927,1747403436235,-402.002299,0.00016438,2]
[361260928,1747403436245,-439.08,0.00016438,2]
[361260929,1747403436255,-400.0,0.00016438,2]
[361260930,1747403436264,-151.0,0.00016438,2]
[361260931,1747403436274,-151.0,0.00016438,2]
[361260932,1747403436283,-400.0,0.00016438,2]
[361260933,1747403436293,-400.0,0.00016438,2]
[361260934,1747403436303,-771.9,0.00016438,2]
[361260935,1747403436314,-400.0,0.00016438,2]
[361260936,1747403436332,-151.0,0.00016438,2]
[361260937,1747403436345,-151.0,0.00016438,2]
[361260938,1747403436355,-507.44,0.00016438,2]
[361260939,1747403436365,-400.0,0.00016438,2]
[361260940,1747403436376,-504.33870394,0.00016438,2]
[361260941,1747403436386,-400.0,0.00016438,2]
[361260942,1747403436396,-400.0,0.00016438,2]
[361260943,1747403436406,-625.07,0.00016438,2]
[361260944,1747403436417,-400.0,0.00016438,2]
[361260945,1747403436427,-400.0,0.00016438,2]
[361260946,1747403436437,-400.0,0.00016438,2]
[361260947,1747403436447,-422.05,0.00016438,2]
[361260948,1747403436457,-400.0,0.00016438,2]
[361260949,1747403436724,-918.86,0.00016438,2]
[361260950,1747403436749,-400.0,0.00016438,2]
[361260951,1747403436759,-400.0,0.00016438,2]
[361260952,1747403436769,-400.0,0.00016438,2]
[361260953,1747403436780,-492.06347513,0.00016438,2]
[361260954,1747403436790,-400.0,0.00016438,2]
[361260955,1747403436800,-464.1,0.00016438,2]
[361260956,1747403436810,-400.0,0.00016438,2]
[361260957,1747403436819,-400.0,0.00016438,2]
[361260958,1747403436831,-427.23,0.00016438,2]
[361260959,1747403436841,-400.0,0.00016438,2]
[361260960,1747403436851,-418.38,0.00016438,2]
[361260961,1747403436860,-400.0,0.00016438,2]
[361260962,1747403436870,-151.0,0.00016438,2]